bitfinex-derivatives/quotes_ETHF0:USTF0_20250911
["timestamp","ask_amount","ask_price","bid_price","bid_amount"]
[1757580865987,0.2005,4435.9,4435.8,0.7153]
[1757580866278,0.31,4436.2,4435.8,0.4187]
[1757580866478,0.2005,4436.1,4436.0,0.1196]
[1757580866877,0.5105,4436.1,4436.0,0.5383]
[1757580867377,0.7153,4436.1,4436.0,0.838]
[1757580872185,0.7153,4436.1,4436.0,0.7184]
[1757580873780,0.7153,4436.1,4436.0,0.8351]
[1757580874383,0.7153,4436.1,4436.0,0.7184]
[1757580875290,0.7028,4435.7,4435.6,0.5052]
[1757580875485,0.7028,4435.7,4435.3,0.2997]
[1757580875691,0.7028,4435.7,4435.2,0.02475]
[1757580876087,0.7028,4435.7,4435.3,0.2997]
[1757580876286,0.7028,4435.7,4435.2,0.02475]
[1757580877190,0.7028,4435.7,4435.3,0.2997]
[1757580877391,0.7028,4435.7,4435.6,0.5052]
[1757580885698,0.7028,4435.7,4435.6,0.53530489]
[1757580886199,0.7028,4435.7,4435.6,0.03010489]
[1757580886398,0.7028,4435.7,4435.6,0.32980489]
[1757580886898,0.7028,4435.7,4435.6,0.33058747]
[1757580888094,0.7028,4435.7,4435.6,0.53608747]
[1757580889402,0.7028,4435.7,4435.6,0.74228747]
[1757580890101,0.7028,4435.7,4435.6,0.03088747]
[1757580891805,0.7028,4435.7,4435.6,0.33058747]
[1757580892102,0.7028,4435.7,4435.6,0.53608747]
[1757580893005,0.7028,4435.7,4435.6,0.53986502]
[1757580893902,0.7028,4435.7,4435.6,0.74606502]
[1757580895407,0.2012,4435.7,4435.6,0.74606502]
[1757580895616,0.0676,4435.9,4435.6,0.44636502]
[1757580895808,0.2012,4435.8,4435.7,0.7114]
[1757580896017,0.498,4435.8,4435.7,0.74606502]
[1757580897027,0.7028,4435.8,4435.7,0.74606502]
[1757580897832,0.2012,4435.8,4435.7,0.74606502]
[1757580900223,0.0676,4435.9,4435.7,0.44636502]
[1757580900529,0.5808,4435.9,4435.8,0.7277]
[1757580900825,0.5132,4435.9,4435.8,0.7277]
[1757580901038,0.1279,4438.5,4435.9,0.3182]
[1757580901229,0.3084,4436.8,4436.0,0.1171]
[1757580901526,0.2048,4436.2,4436.1,0.7277]
[1757580901925,0.3084,4436.4,4436.1,0.7277]
[1757580902229,0.3084,4436.4,4436.3,0.7277]
[1757580902430,0.5132,4436.4,4436.3,0.7277]
[1757580903228,0.723,4436.4,4436.3,0.76236502]
[1757580914134,0.723,4436.4,4436.3,0.76614257]
[1757580914737,0.723,4436.4,4436.3,0.76992012]
[1757580915334,0.4146,4436.4,4436.3,0.76992012]
[1757580915525,0.0676,4436.6,4436.5,0.8448]
[1757580915724,0.0676,4436.6,4436.5,0.88702012]
[1757580915929,0.3084,4437.0,4436.6,0.3182]
[1757580916128,0.2048,4437.0,4436.9,0.7277]
[1757580916932,0.2048,4437.0,4436.9,0.79325249]
[1757580919034,0.5132,4437.0,4436.9,0.79325249]
[1757580920837,0.4308,4437.0,4436.9,0.79325249]
[1757580921742,0.7392,4437.0,4436.9,0.79325249]
[1757580923135,0.7392,4437.0,4436.9,0.79986004]
[1757580929146,1.34516405,4437.0,4436.9,0.79986004]
[1757580931346,1.54676405,4437.0,4436.9,0.79986004]
[1757580931742,0.9408,4437.0,4436.9,0.79986004]
[1757580943350,1.54791493,4437.0,4436.9,0.79986004]
[1757580943847,0.6324,4437.0,4436.9,0.79986004]
[1757580944048,1.0379121,4437.0,4436.9,0.79986004]
[1757580944250,1.5553121,4437.0,4436.9,0.39036004]
[1757580944550,1.6770121,4437.0,4436.9,0.39697925]
[1757580950355,1.6770121,4437.0,4436.9,0.59457925]
[1757580951560,1.67761366,4437.0,4436.9,0.59457925]
[1757580956355,1.67761366,4437.0,4436.9,0.07877925]
[1757580957159,1.67761366,4437.0,4436.9,0.57797925]
[1757580961062,1.67761366,4437.0,4436.9,0.07877925]
[1757580961361,5.90299366,4437.0,4436.1,0.3026]
[1757580961551,0.7228,4436.2,4436.1,0.7083]
[1757580961749,1.330586,4436.2,4436.1,0.7083]
[1757580962165,0.7228,4436.2,4436.1,0.7083]
[1757580964973,0.7228,4436.2,4436.1,0.73902946]
[1757580966570,0.7228,4436.2,4436.1,0.73918748]
[1757580971080,0.7228,4436.2,4436.1,0.54228748]
[1757580971981,0.2105,4436.2,4436.1,0.73918748]
[1757580972783,0.2105,4436.2,4436.1,0.74766705]
[1757580973776,0.7228,4436.2,4436.1,0.74766705]
[1757580981482,0.94822,4436.2,4435.7,0.3026]
[1757580981682,0.2105,4435.4,4435.3,0.7083]
[1757580981985,0.7228,4435.4,4435.3,0.7083]
[1757580987091,0.4064,4435.4,4435.3,0.7083]
[1757580987283,0.2105,4435.4,4435.3,0.7083]
[1757580988293,0.0676,4435.6,4435.5,0.5244]
[1757580988491,0.0676,4435.6,4435.5,0.816]
[1757580988688,0.1961,4435.7,4435.6,0.2916]
[1757580988994,0.4868,4435.7,4435.6,0.6972]
[1757580993794,0.6867,4435.7,4435.6,0.6972]
[1757581003007,0.0676,4435.9,4435.7,0.2916]
[1757581003198,0.0676,4435.9,4435.7,0.4056]
[1757581003401,0.0676,4435.9,4435.8,0.6972]
[1757581003799,0.226,4436.4,4435.9,0.2916]
[1757581004005,0.4868,4436.0,4435.9,0.6972]
[1757581004200,1.0940465,4436.0,4435.9,0.6972]
[1757581006401,1.2939465,4436.0,4435.9,0.6972]
[1757581007203,0.6867,4436.0,4435.9,0.6972]
[1757581007398,1.29420407,4436.0,4435.9,0.6972]
[1757581010505,1.41890407,4436.0,4435.6,0.2916]
[1757581010804,0.396,4435.4,4435.3,0.2916]
[1757581011015,0.6867,4435.4,4435.3,0.2916]
[1757581011196,1.29455491,4435.4,4435.3,0.2916]
[1757581012018,1.29455491,4435.4,4435.2,0.02475]
[1757581012306,0.1247,4435.5,4435.2,0.02475]
[1757581012307,1.00378153,4435.3,4435.2,0.02475]
[1757581012509,1.29448153,4435.3,4435.2,0.02475]
[1757581012711,1.39558153,4435.3,4435.2,0.02475]
[1757581014205,1.13098153,4435.3,4435.2,0.72195]
[1757581014407,1.42168153,4435.3,4435.2,0.72195]
[1757581014612,1.62158153,4435.3,4435.2,0.72195]
[1757581015515,1.62158153,4435.3,4435.2,0.02475]
[1757581017716,1.39558153,4435.3,4435.2,0.55345]
[1757581017903,1.62158153,4435.3,4435.2,0.75345]
[1757581018717,1.39558153,4435.3,4435.2,0.75345]
[1757581018904,1.62158153,4435.3,4435.2,0.75345]
[1757581019914,1.62158153,4435.3,4435.2,0.02475]
[1757581024117,1.62158153,4435.3,4434.0,0.1215]
[1757581024319,0.7216,4434.7,4434.6,0.5287]
[1757581024518,0.7216,4434.7,4434.0,0.1215]
[1757581024817,0.7216,4434.7,4434.1,0.32]
[1757581025018,0.7216,4434.7,4434.6,0.5287]
[1757581025620,0.8227,4434.7,4434.6,0.5287]
[1757581026816,0.8227,4434.7,4434.0,0.1215]
[1757581027010,0.8227,4434.7,4434.1,0.32]
[1757581027416,0.8227,4434.7,4434.6,0.2087]
[1757581027615,0.8227,4434.7,4434.6,0.5287]
[1757581028122,0.8227,4434.7,4434.6,0.7287]
[1757581029123,0.3124,4434.7,4434.6,0.7287]
[1757581029421,0.8227,4434.7,4434.6,0.5287]
[1757581029618,0.8227,4434.7,4434.1,0.32]
[1757581031222,0.8227,4434.7,4434.6,0.2087]
[1757581031424,0.8227,4434.7,4434.6,0.5287]
[1757581039726,0.8227,4434.7,4434.6,0.7287]
[1757581040031,1.42925425,4434.7,4434.6,0.7287]
[1757581044534,0.3271,4434.7,4434.6,0.95419999]
[1757581044833,0.3271,4434.7,4434.6,0.7287]
[1757581048334,1.0412,4434.7,4434.6,0.7287]
[1757581051041,1.0412,4434.7,4434.1,0.3177]
[1757581051234,0.9401,4434.7,4434.1,0.3177]
[1757581051930,0.60717098,4434.6,4434.1,0.3177]
[1757581052130,0.7039,4434.2,4434.1,0.7255]
[1757581062643,1.32445917,4434.2,4433.6,0.3177]
[1757581062852,0.7039,4433.7,4433.6,0.7255]
[1757581071357,0.8051,4433.7,4433.6,0.7255]
[1757581080562,0.1012,4433.7,4433.6,0.7255]
[1757581103784,0.0676,4433.9,4433.7,0.2949]
[1757581103977,0.3426,4435.0,4434.6,0.4204]
[1757581104180,0.4992,4434.8,4434.7,0.7153]
[1757581104377,1.13110253,4434.8,4434.7,0.7153]
[1757581104684,1.34510253,4434.8,4434.7,0.7153]
[1757581107286,0.63190253,4434.8,4434.7,0.7153]
[1757581107591,1.15900253,4434.8,4434.7,0.7153]
[1757581108390,1.36450253,4434.8,4434.7,0.7153]
[1757581110795,1.36450253,4434.8,4434.0,0.1224]
[1757581110796,1.36450253,4434.8,4434.4,0.3215]
[1757581111093,0.7326,4434.8,4434.2,0.3215]
[1757581112094,0.7326,4434.8,4434.7,0.5215]
[1757581115698,0.7326,4434.8,4434.7,0.7232]
[1757581116289,0.7326,4434.8,4434.7,0.4017]
[1757581116495,0.7326,4434.8,4434.5,0.3215]
[1757581117695,0.7326,4434.2,4434.1,0.5215]
[1757581117894,0.7326,4434.2,4434.1,0.2]
[1757581118287,0.7326,4434.2,4433.5,0.1188]
[1757581118483,0.7326,4434.2,4433.6,0.3215]
[1757581121494,0.7326,4434.2,4434.1,0.5215]
[1757581122396,0.7326,4434.2,4434.1,0.2]
[1757581124195,0.7326,4434.2,4433.9,0.3215]
[1757581124398,0.7326,4434.2,4433.6,0.3215]
[1757581135613,0.7326,4433.7,4433.6,0.3215]
[1757581136011,0.7326,4433.7,4433.6,0.5215]
[1757581139014,0.7326,4433.7,4433.6,0.7232]
[1757581144419,0.414,4433.2,4433.1,0.32]
[1757581144719,0.7299,4433.2,4433.1,0.7164]
[1757581150414,0.5167,4433.2,4433.1,0.7164]
[1757581151424,0.3159,4433.6,4433.1,0.3964]
[1757581151624,0.7299,4433.6,4433.5,0.3964]
[1757581151824,0.7299,4433.6,4433.5,0.7164]
[1757581153216,0.5167,4433.6,4433.5,0.841]
[1757581153524,0.7299,4433.6,4433.5,0.7164]
[1757581154624,0.7299,4433.6,4433.5,0.1932]
[1757581154834,0.2008,4433.1,4433.0,0.521]
[1757581155126,0.5167,4433.1,4433.0,0.521]
[1757581155424,0.5167,4433.1,4433.0,0.841]
[1757581157019,0.5167,4433.1,4433.0,0.7164]
[1757581158326,0.2008,4433.1,4433.0,0.521]
[1757581158528,0.5167,4433.1,4433.0,0.841]
[1757581160618,0.3159,4433.1,4433.0,0.841]
[1757581162928,0.3954,4433.5,4433.4,0.3964]
[1757581163124,0.9245,4433.5,4433.4,0.7164]
[1757581163325,0.8569,4433.5,4433.4,0.7164]
[1757581163728,0.7299,4433.5,4433.4,0.7164]
[1757581164324,0.5167,4433.5,4433.4,0.7164]
[1757581166328,0.8569,4433.5,4433.1,0.32]
[1757581166727,0.8569,4433.5,4432.9,0.32]
[1757581167225,0.8569,4433.5,4433.4,0.1932]
[1757581167425,0.8569,4433.5,4433.4,0.6897]
[1757581167628,0.8569,4433.5,4432.8,0.17144726]
[1757581167830,0.8569,4433.5,4432.9,0.2958]
[1757581172728,0.8569,4433.5,4433.4,0.4906]
[1757581172933,1.48994652,4433.5,4433.4,0.4906]
[1757581173634,1.48994652,4433.5,4433.4,0.1948]
[1757581176426,1.48994652,4433.5,4433.4,0.4906]
[1757581178636,1.48994652,4433.5,4433.4,0.6913]
[1757581178837,1.36294652,4433.5,4433.4,0.6913]
[1757581181534,1.47874652,4433.5,4433.4,0.6913]
[1757581197342,1.47874652,4433.5,4433.4,0.1948]
[1757581197546,1.47874652,4433.5,4433.1,0.2909]
[1757581197748,0.7273,4433.2,4433.1,0.489]
[1757581200455,0.7273,4433.2,4433.1,0.1981]
[1757581200656,0.7273,4433.2,4433.1,0.489]
[1757581204045,0.7273,4433.2,4433.1,0.6828]
[1757581204248,0.0676,4433.4,4433.2,0.2909]
[1757581204454,0.0676,4433.4,4433.3,0.6828]
[1757581204751,0.3188,4433.5,4433.4,0.2909]
[1757581204951,0.5257,4434.0,4433.9,0.1981]
[1757581205150,0.5257,4434.0,4433.9,0.489]
[1757581205358,1.16127407,4434.0,4433.9,0.489]
[1757581205558,1.48007407,4434.0,4433.9,0.489]
[1757581205859,1.48007407,4434.0,4433.9,0.6828]
[1757581206052,1.36287407,4434.0,4433.9,0.6828]
[1757581206254,0.1172,4434.5,4433.5,0.1184]
[1757581206255,0.7273,4434.4,4434.3,0.6828]
[1757581206452,1.35967393,4434.4,4434.3,0.6828]
[1757581206651,0.7273,4434.4,4434.3,0.6828]
[1757581209059,0.517,4434.4,4434.3,0.6828]
[1757581210258,0.517,4435.9,4435.8,0.1981]
[1757581210463,0.517,4435.9,4435.8,0.6828]
[1757581210464,1.35605231,4435.9,4435.8,0.6828]
[1757581210761,0.517,4435.9,4435.8,0.6828]
[1757581211460,0.4085,4436.5,4436.4,0.3919]
[1757581211659,0.4085,4436.5,4436.4,0.6828]
[1757581212054,0.7273,4436.5,4436.4,0.6828]
[1757581212762,0.5334,4437.0,4436.9,0.1981]
[1757581212961,0.5334,4437.0,4436.6,0.2909]
[1757581213462,0.4085,4436.7,4436.6,0.489]
[1757581213666,0.7273,4436.7,4436.6,0.489]
[1757581217261,0.7273,4436.7,4436.6,0.1981]
[1757581218864,0.7273,4436.7,4436.6,0.489]
[1757581222668,0.1249,4437.0,4436.1,13.4981]
[1757581222669,0.7273,4436.2,4436.1,13.4981]
[1757581222859,0.1982,4435.2,4435.1,0.6828]
[1757581223058,0.517,4435.2,4435.1,0.90824]
[1757581223260,0.3188,4435.2,4435.1,13.9828]
[1757581223460,0.1249,4436.0,4435.2,0.2909]
[1757581223764,0.3188,4435.9,4435.2,0.2909]
[1757581228858,0.1982,4435.4,4435.3,13.6979]
[1757581229057,0.5102,4435.4,4435.3,14.0062]
[1757581232566,4.93506,4435.4,4434.6,0.3083]
[1757581232765,0.509,4434.2,4434.1,0.7035]
[1757581232970,0.7084,4434.2,4434.1,0.7035]
[1757581233172,0.7084,4434.2,4434.1,14.0035]
[1757581234374,0.7084,4434.2,4433.6,0.3083]
[1757581234968,0.2255,4434.1,4433.7,13.3]
[1757581235176,0.7084,4433.8,4433.7,13.8037]
[1757581235678,0.7084,4433.8,4433.7,14.0035]
[1757581237878,0.509,4433.8,4433.7,14.0035]
[1757581238181,0.2255,4434.1,4433.7,13.6952]
[1757581238479,0.509,4434.0,4433.9,0.7035]
[1757581238673,0.7084,4434.0,4433.9,0.7035]
[1757581250189,0.8301,4434.0,4433.9,0.1954]
[1757581251084,0.8301,4434.0,4433.9,0.5037]
[1757581251289,0.8301,4434.0,4433.9,0.7035]
[1757581251488,0.7084,4434.0,4433.9,0.7035]
[1757581251688,0.2255,4434.1,4434.0,0.8198]
[1757581251990,0.7345,4434.1,4434.0,0.8198]
[1757581252390,0.9339,4434.1,4434.0,0.7035]
[1757581253690,0.9339,4434.1,4433.6,0.3083]
[1757581253996,0.509,4433.4,4433.3,14.2295]
[1757581254188,0.7084,4433.4,4433.3,14.0035]
[1757581254495,0.7084,4433.4,4433.3,14.2295]
[1757581254888,0.9339,4433.4,4433.3,14.2295]
[1757581255699,0.9339,4433.4,4433.3,14.0035]
[1757581256112,0.7345,4433.4,4433.3,14.0035]
[1757581256312,0.2255,4433.4,4433.3,14.0035]
[1757581263130,0.2255,4433.4,4433.3,14.2295]
[1757581263428,0.2255,4433.4,4433.3,17.12076226]
[1757581270339,0.3171,4434.4,4433.3,16.81246226]
[1757581270541,0.8364,4434.5,4434.4,0.2079]
[1757581270836,1.45920384,4434.5,4434.4,0.2079]
[1757581271037,1.45920384,4434.5,4434.1,0.3055]
[1757581271240,0.7147,4434.2,4434.1,0.2079]
[1757581271441,1.33750384,4434.2,4434.1,0.2079]
[1757581277031,0.93990384,4434.2,4434.1,0.7083]
[1757581277236,0.3171,4434.4,4434.2,0.3055]
[1757581277437,0.3847,4434.6,4434.3,0.4028]
[1757581277633,0.3171,4434.9,4434.5,0.8246]
[1757581277838,0.5193,4435.5,4435.4,0.2079]
[1757581278233,1.14127395,4435.5,4435.4,0.2079]
[1757581278437,1.45837395,4435.5,4435.4,0.2079]
[1757581278846,0.8364,4435.5,4435.4,0.2079]
[1757581280446,0.8364,4435.5,4435.1,0.3055]
[1757581281742,0.3171,4435.4,4434.7,0.3055]
[1757581281943,0.5146,4434.8,4434.7,0.7083]
[1757581282142,0.7147,4434.8,4434.7,0.7083]
[1757581287850,0.7147,4434.8,4434.7,0.2079]
[1757581288155,0.7147,4434.8,4434.7,0.7247]
[1757581288345,0.5146,4434.8,4434.7,0.7247]
[1757581289555,0.721,4434.8,4434.7,0.7247]
[1757581294559,0.721,4434.8,4434.7,0.4067]
[1757581295661,0.721,4434.8,4434.7,0.7247]
[1757581297863,0.721,4434.8,4434.7,0.4067]
[1757581298964,0.721,4434.8,4434.4,0.318]
[1757581298965,0.1265,4434.5,4434.4,0.318]
[1757581299156,0.8192,4434.5,4434.4,0.431]
[1757581300366,0.4863,4434.5,4434.4,0.9478]
[1757581303068,0.4863,4434.5,4434.4,14.2478]
[1757581303461,0.6128,4434.5,4434.4,14.2478]
[1757581304356,0.4863,4434.5,4434.4,14.2478]
[1757581305765,0.291,4434.9,4434.4,13.9298]
[1757581305964,0.526,4435.0,4434.9,0.205]
[1757581306564,0.817,4435.0,4434.9,0.205]
[1757581307562,0.817,4435.0,4434.9,0.7218]
[1757581311771,0.817,4435.0,4434.9,0.4038]
[1757581314582,0.817,4435.0,4434.9,0.7218]
[1757581315182,0.817,4435.0,4434.9,0.4038]
[1757581315582,0.817,4435.0,4434.9,0.205]
[1757581317184,0.817,4435.0,4434.9,0.7098]
[1757581317787,0.817,4435.0,4434.9,0.4038]
[1757581318088,0.817,4435.0,4434.9,0.205]
[1757581318488,0.817,4435.0,4434.6,0.226]
[1757581325190,0.7105,4434.6,4434.5,5.275]
[1757581325390,0.7105,4433.9,4433.1,5.45374226]
[1757581325688,0.2006,4433.3,4433.2,13.3]
[1757581325880,0.7105,4433.3,4433.2,13.7247]
[1757581326084,0.7105,4433.3,4433.2,16.69383575]
[1757581326694,0.7105,4433.3,4433.2,17.21023575]
[1757581327795,0.7105,4433.3,4433.2,16.98423575]
[1757581327994,0.7105,4433.3,4433.2,17.21023575]
[1757581328899,0.7105,4433.3,4433.2,16.90423575]
[1757581329394,0.7105,4433.3,4433.2,17.21023575]
[1757581329699,0.7105,4433.3,4433.2,16.46783575]
[1757581329889,0.7105,4433.3,4433.2,3.19513575]
[1757581330195,0.836,4433.0,4432.9,0.1987]
[1757581330386,0.836,4433.0,4432.9,13.7247]
[1757581330583,0.836,4433.0,4432.9,16.65488042]
[1757581332698,0.836,4433.0,4432.9,16.86528042]
[1757581332899,0.836,4433.0,4432.9,17.17128042]
[1757581339102,0.5099,4433.0,4432.9,17.17128042]
[1757581340911,0.6354,4433.0,4432.9,17.17128042]
[1757581343212,0.5099,4433.0,4432.9,17.17128042]
[1757581346311,0.2995,4433.0,4432.9,17.17128042]
[1757581351110,0.5059,4433.0,4432.9,17.17128042]
[1757581358515,0.0676,4433.4,4432.9,17.17128042]
[1757581358710,0.3056,4433.3,4433.2,0.4097]
[1757581358915,0.3056,4433.3,4433.2,0.9471]
[1757581359223,0.512,4433.3,4433.2,0.9471]
[1757581365925,0.1255,4434.0,4433.2,0.6357]
[1757581366124,0.92674952,4433.9,4433.8,0.7211]
[1757581366423,1.13314952,4433.9,4433.8,0.7211]
[1757581371332,0.512,4433.9,4433.8,0.7211]
[1757581372030,1.13026631,4433.9,4433.8,0.7211]
[1757581374129,0.512,4433.9,4433.8,0.7211]
[1757581374428,0.3056,4433.9,4433.8,0.7211]
[1757581374735,0.3056,4434.0,4433.9,0.3114]
[1757581374928,0.3056,4434.0,4433.9,0.7211]
[1757581376139,0.0676,4434.1,4434.0,0.8356]
[1757581376526,0.3056,4434.3,4434.2,0.4097]
[1757581376826,0.3056,4434.3,4434.2,0.7211]
[1757581378032,0.296,4434.9,4434.3,0.3028]
[1757581378224,0.351,4435.0,4434.3,0.3028]
[1757581378421,0.6984,4434.9,4434.8,0.2034]
[1757581379034,0.6984,4434.9,4434.5,0.3028]
[1757581380226,0.0676,4434.8,4434.7,0.2034]
[1757581380530,0.47,4434.8,4434.7,0.2034]
[1757581381033,0.766,4434.8,4434.7,0.2034]
[1757581381526,0.6984,4433.8,4433.7,0.5062]
[1757581381726,0.1223,4433.5,4433.0,0.3028]
[1757581381932,0.6984,4433.1,4433.0,0.7159]
[1757581382123,0.6984,4433.1,4433.0,0.4131]
[1757581383234,0.6984,4433.1,4433.0,0.7159]
[1757581384237,0.6984,4433.1,4433.0,0.4131]
[1757581385829,0.296,4433.1,4433.0,0.7159]
[1757581386034,0.4921,4433.1,4433.0,0.7159]
[1757581386637,0.4921,4433.1,4433.0,14.0159]
[1757581387429,0.296,4433.1,4433.0,14.0159]
[1757581387939,0.1223,4433.5,4433.0,13.7131]
[1757581388138,0.1223,4434.0,4433.4,0.7159]
[1757581388339,0.1223,4434.0,4433.5,0.3028]
[1757581388531,0.5247,4434.0,4433.2,0.226]
[1757581388836,0.6984,4433.3,4433.2,0.4294]
[1757581389138,0.6984,4433.3,4433.2,0.6391]
[1757581389438,0.6984,4433.3,4433.2,0.9419]
[1757581397248,0.6984,4433.3,4433.2,0.6391]
[1757581398856,0.6984,4433.3,4433.2,0.4294]
[1757581399252,0.296,4433.2,4432.8,0.17144726]
[1757581399452,0.6984,4432.9,4432.8,0.17144726]
[1757581445996,0.6984,4432.9,4430.8,36.54047337]
[1757581445997,0.7159,4431.7,4431.3,0.3015]
[1757581446182,0.1265,4431.5,4431.4,13.5103]
[1757581446493,0.5401,4431.5,4431.4,13.73595]
[1757581446787,0.8424,4431.5,4431.4,13.5103]
[1757581449895,0.8424,4431.5,4431.4,14.0052]
[1757581450194,0.5024,4431.5,4431.4,14.0052]
[1757581452995,0.3023,4431.5,4431.4,14.0052]
[1757581453498,0.359,4431.7,4431.4,13.7037]
[1757581453702,0.0567,4431.7,4431.6,0.4037]
[1757581453903,0.0567,4431.7,4431.6,0.7052]
[1757581454107,0.2001,4431.9,4431.8,0.4037]
[1757581454296,0.5024,4431.9,4431.8,0.7052]
[1757581455405,0.7159,4431.9,4431.8,0.7052]
[1757581458105,0.4136,4431.9,4431.4,13.526]
[1757581458310,0.8424,4431.5,4431.4,13.7363]
[1757581460406,0.5024,4431.5,4431.4,14.2312]
[1757581465012,0.8424,4431.5,4431.4,14.2312]
[1757581467209,0.8424,4431.5,4431.4,13.7037]
[1757581468109,0.8424,4431.5,4431.4,13.9945]
[1757581469516,0.8424,4431.5,4431.4,0.6945]
[1757581470223,0.8424,4431.5,4431.4,0.4037]
[1757581471722,0.8424,4431.5,4431.1,13.5908]
[1757581471916,0.2935,4431.4,4431.1,13.5908]
[1757581472121,0.6926,4431.2,4431.1,14.0087]
[1757581472818,0.6926,4431.2,4431.1,0.7087]
[1757581473916,0.6926,4431.2,4431.1,0.4179]
[1757581474113,0.6926,4431.2,4431.1,0.2064]
[1757581474418,0.8143,4431.0,4430.9,13.7324]
[1757581474823,0.8143,4431.0,4430.9,13.9439]
[1757581475013,0.8143,4431.0,4430.9,14.2347]
[1757581475324,0.4927,4431.0,4430.9,14.2347]
[1757581476216,0.2935,4431.0,4430.9,14.2347]
[1757581476724,0.4927,4431.0,4430.9,14.2347]
[1757581478521,0.2935,4431.0,4430.9,14.2347]
[1757581479923,0.1265,4431.5,4430.9,14.2347]
[1757581479924,0.1265,4432.0,4431.4,0.4179]
[1757581480228,0.1992,4431.6,4431.5,0.7087]
[1757581480428,0.4927,4431.6,4431.5,0.7087]
[1757581480629,0.6926,4431.6,4431.5,0.7087]
[1757581482328,0.6926,4431.6,4431.5,0.4179]
[1757581484429,0.6926,4431.6,4431.5,0.2064]
[1757581484629,0.1217,4431.5,4430.9,0.5168]
[1757581484939,0.6926,4431.4,4431.3,0.2064]
[1757581485130,0.6926,4431.4,4431.3,0.7087]
[1757581485331,0.6926,4431.4,4431.3,0.4179]
[1757581485533,0.6926,4431.4,4431.0,0.2908]
[1757581485727,0.3209,4431.0,4430.9,0.4324]
[1757581485931,0.5208,4431.0,4430.9,0.4324]
[1757581486131,0.8143,4431.0,4430.9,0.6439]
[1757581486333,0.8143,4431.0,4430.9,0.9347]
[1757581486633,0.1217,4431.5,4430.9,0.9347]
[1757581486834,0.4927,4431.4,4431.3,0.7087]
[1757581487733,0.6926,4431.4,4431.3,0.2064]
[1757581487934,0.6926,4431.4,4430.9,0.5168]
[1757581488234,0.4927,4431.0,4430.9,0.9347]
[1757581489535,0.8143,4431.0,4430.9,0.9347]
[1757581489734,0.8143,4431.0,4430.9,0.4179]
[1757581489933,0.8143,4431.0,4430.6,13.5908]
[1757581490134,0.6926,4430.7,4430.6,0.2064]
[1757581490937,0.1217,4430.5,4430.4,0.2064]
[1757581491131,0.5208,4430.5,4430.4,0.2064]
[1757581491438,0.5208,4430.5,4430.4,0.4179]
[1757581491641,0.8143,4430.5,4430.4,0.4179]
[1757581492541,0.5208,4430.5,4430.1,13.3]
[1757581492839,0.6926,4430.4,4430.3,0.2064]
[1757581493039,0.6926,4430.4,4430.3,0.7087]
[1757581494741,0.6926,4430.4,4430.3,0.4179]
[1757581496438,0.6926,4430.4,4430.1,13.3]
[1757581496743,0.6926,4430.2,4430.1,0.2064]
[1757581497736,0.1177,4430.0,4429.9,0.1943]
[1757581498044,0.8473,4430.0,4429.9,0.4066]
[1757581498934,0.8473,4430.0,4429.9,0.7272]
[1757581499435,0.8473,4430.0,4429.3,0.3206]
[1757581499637,0.8473,4430.0,4429.9,0.1943]
[1757581500238,0.8473,4430.0,4429.4,0.3206]
[1757581500749,0.8473,4430.0,4429.9,0.1943]
[1757581500940,0.8473,4430.0,4429.9,0.7272]
[1757581501341,0.3157,4430.0,4429.9,0.7272]
[1757581501942,0.5257,4430.0,4429.9,0.7272]
[1757581502447,0.8473,4430.0,4429.9,0.4066]
[1757581504446,0.8473,4430.0,4429.9,0.1943]
[1757581506450,0.8473,4430.0,4429.9,0.7272]
[1757581507047,0.0469,4430.2,4430.1,0.4066]
[1757581507349,0.3157,4430.4,4430.1,0.7272]
[1757581507537,0.3157,4430.4,4430.2,0.3206]
[1757581507742,0.3157,4430.4,4429.9,2.99762905]
[1757581507743,0.5257,4430.4,4430.3,0.4066]
[1757581507945,0.5257,4430.4,4430.3,0.7272]
[1757581512851,0.3157,4430.4,4430.3,0.7272]
[1757581513951,0.3606,4430.6,4430.5,0.7272]
[1757581514256,0.3157,4430.6,4430.5,0.7272]
[1757581515146,0.3157,4430.9,4430.6,0.3206]
[1757581515350,0.3157,4430.9,4430.5,0.1168]
[1757581515351,0.3157,4430.9,4430.8,0.4066]
[1757581515548,0.3157,4430.9,4430.8,0.7272]
[1757581516151,0.3157,4431.4,4430.8,0.4066]
[1757581516353,0.7296,4431.4,4431.3,0.1943]
[1757581518255,0.3157,4431.3,4430.6,0.3206]
[1757581518550,0.1177,4431.5,4430.5,13.3]
[1757581518551,0.3157,4430.6,4430.5,13.3]
[1757581518752,0.7296,4430.6,4430.1,0.3206]
[1757581518947,0.5257,4429.8,4429.7,0.7272]
[1757581519149,0.5257,4429.8,4429.7,14.0272]
[1757581519453,0.5257,4429.8,4429.7,14.25294999]
[1757581519849,0.5257,4429.8,4429.7,14.0272]
[1757581520460,0.7296,4429.8,4429.7,13.7066]
[1757581520759,0.7296,4429.8,4429.7,13.4943]
[1757581523760,0.7296,4429.8,4429.7,0.1943]
[1757581526566,0.7296,4429.8,4429.7,0.7272]
[1757581528461,0.7296,4429.8,4429.7,0.4066]
[1757581529069,0.7296,4429.8,4429.7,0.7104]
[1757581530077,0.7296,4429.8,4429.7,0.4066]
[1757581530277,0.7296,4429.8,4429.7,0.7104]
[1757581531980,0.7296,4429.8,4429.7,0.4066]
[1757581532371,0.7296,4429.8,4429.7,0.7104]